[Event "*** SCC Grand Prix: Titled Tuesday Blitz"]
[Site "Chess.com"]
[Date "2020.10.06"]
[Round "1"]
[White "sorito"]
[Black "PSvidler"]
[Result "0-1"]
[WhiteElo "2453"]
[BlackElo "2898"]
[TimeControl "180+1"]
[EndTime "10:05:51 PDT"]
[Termination "PSvidler won on time"]

1. d4 {[%clk 0:02:58.3]} 1... Nf6 {[%clk 0:02:57.9]} 2. Bf4 {[%clk 0:02:57.1]}
2... g6 {[%clk 0:02:56.8]} 3. e3 {[%clk 0:02:57.2]} 3... Bg7 {[%clk 0:02:57]} 4.
h3 {[%clk 0:02:57.4]} 4... O-O {[%clk 0:02:56.9]} 5. Nf3 {[%clk 0:02:57.2]} 5...
c5 {[%clk 0:02:56.9]} 6. c3 {[%clk 0:02:54.3]} 6... d6 {[%clk 0:02:54.8]} 7.
Nbd2 {[%clk 0:02:54.2]} 7... b6 {[%clk 0:02:52.8]} 8. Bh2 {[%clk 0:02:51.7]}
8... Bb7 {[%clk 0:02:52.8]} 9. Be2 {[%clk 0:02:52]} 9... Nbd7 {[%clk 0:02:52.7]}
10. O-O {[%clk 0:02:52.4]} 10... a6 {[%clk 0:02:52.2]} 11. a4 {[%clk 0:02:52.2]}
11... Bc6 {[%clk 0:02:47.7]} 12. b4 {[%clk 0:02:24.6]} 12... cxd4 {[%clk
0:02:19.1]} 13. cxd4 {[%clk 0:02:20.4]} 13... Qc7 {[%clk 0:02:14.6]} 14. b5
{[%clk 0:02:07.8]} 14... axb5 {[%clk 0:02:14.3]} 15. axb5 {[%clk 0:01:55.5]}
15... Bd5 {[%clk 0:02:14]} 16. Ra6 {[%clk 0:01:43.5]} 16... Ne4 {[%clk
0:02:07.4]} 17. Nxe4 {[%clk 0:01:38.6]} 17... Bxe4 {[%clk 0:02:08.3]} 18. Qa1
{[%clk 0:01:39]} 18... Qc2 {[%clk 0:02:02.6]} 19. Qd1 {[%clk 0:01:27.7]} 19...
Qb2 {[%clk 0:01:52.5]} 20. Bd3 {[%clk 0:01:21.1]} 20... Bb7 {[%clk 0:01:52]} 21.
Rxa8 {[%clk 0:00:58.8]} 21... Rxa8 {[%clk 0:01:51.5]} 22. Qc1 {[%clk 0:00:59.1]}
22... Qxc1 {[%clk 0:01:49.1]} 23. Rxc1 {[%clk 0:00:58.9]} 23... Nf6 {[%clk
0:01:48.2]} 24. Rc7 {[%clk 0:00:47]} 24... Ra1+ {[%clk 0:01:41]} 25. Bf1 {[%clk
0:00:46.7]} 25... Be4 {[%clk 0:01:38.8]} 26. Rxe7 {[%clk 0:00:40.9]} 26... Bd3
{[%clk 0:01:38.4]} 27. Nd2 {[%clk 0:00:40.4]} 27... Bf8 {[%clk 0:01:38.4]} 28.
Rc7 {[%clk 0:00:38.8]} 28... Ne4 {[%clk 0:01:38.3]} 29. Rc8 {[%clk 0:00:13.7]}
29... Kg7 {[%clk 0:01:33.1]} 30. Bf4 {[%clk 0:00:02.6]} 30... Nxd2 {[%clk
0:01:32.7]} 0-1

[Event "*** SCC Grand Prix: Titled Tuesday Blitz"]
[Site "Chess.com"]
[Date "2020.10.06"]
[Round "1"]
[White "Gahan-MG"]
[Black "icychess54"]
[Result "1-0"]
[WhiteElo "2571"]
[BlackElo "2255"]
[TimeControl "180+1"]
[EndTime "10:05:56 PDT"]
[Termination "Gahan-MG won by checkmate"]

1. e4 {[%clk 0:02:56.8]} 1... c5 {[%clk 0:03:00.2]} 2. c3 {[%clk 0:02:56.4]}
2... Nf6 {[%clk 0:02:59.3]} 3. e5 {[%clk 0:02:56.8]} 3... Nd5 {[%clk 0:02:58.7]}
4. d4 {[%clk 0:02:57.7]} 4... cxd4 {[%clk 0:02:58.6]} 5. cxd4 {[%clk 0:02:58.6]}
5... Nc6 {[%clk 0:02:58.8]} 6. Nf3 {[%clk 0:02:59]} 6... d6 {[%clk 0:02:59.1]}
7. Bc4 {[%clk 0:02:58.5]} 7... Nb6 {[%clk 0:02:58.3]} 8. Bb5 {[%clk 0:02:58.7]}
8... a6 {[%clk 0:02:42.8]} 9. Bxc6+ {[%clk 0:02:58.3]} 9... bxc6 {[%clk
0:02:43.7]} 10. O-O {[%clk 0:02:58]} 10... g6 {[%clk 0:02:37]} 11. Re1 {[%clk
0:02:57]} 11... Bg7 {[%clk 0:02:18.4]} 12. Bg5 {[%clk 0:02:53.5]} 12... Be6
{[%clk 0:02:07.1]} 13. Nc3 {[%clk 0:02:50.3]} 13... O-O {[%clk 0:02:05.5]} 14.
Rc1 {[%clk 0:02:46.9]} 14... Qd7 {[%clk 0:01:55.5]} 15. h4 {[%clk 0:02:19.3]}
15... Nd5 {[%clk 0:01:44.6]} 16. h5 {[%clk 0:02:14]} 16... Nxc3 {[%clk
0:01:29.4]} 17. Rxc3 {[%clk 0:02:11.4]} 17... h6 {[%clk 0:01:27.1]} 18. Bc1
{[%clk 0:01:58.6]} 18... g5 {[%clk 0:01:26.5]} 19. Qa4 {[%clk 0:01:54.9]} 19...
Bd5 {[%clk 0:01:23.2]} 20. Nh2 {[%clk 0:01:44]} 20... Qf5 {[%clk 0:00:56]} 21.
Nf1 {[%clk 0:01:34.3]} 21... dxe5 {[%clk 0:00:49.7]} 22. dxe5 {[%clk 0:01:33.6]}
22... Bxe5 {[%clk 0:00:46]} 23. Ne3 {[%clk 0:01:30.6]} 23... Qf4 {[%clk
0:00:36.4]} 24. Qxf4 {[%clk 0:01:23.3]} 24... Bxf4 {[%clk 0:00:34.9]} 25. Nxd5
{[%clk 0:01:21]} 25... Bxc1 {[%clk 0:00:34.9]} 26. Nxe7+ {[%clk 0:01:20.7]}
26... Kg7 {[%clk 0:00:35]} 27. Rexc1 {[%clk 0:01:20]} 27... Rfe8 {[%clk
0:00:32.9]} 28. Nf5+ {[%clk 0:01:17]} 28... Kf6 {[%clk 0:00:31]} 29. Nxh6 {[%clk
0:01:17.1]} 29... Re4 {[%clk 0:00:28]} 30. Rxc6+ {[%clk 0:01:16.2]} 30... Ke5
{[%clk 0:00:28.3]} 31. Nxf7+ {[%clk 0:01:15.5]} 31... Kd4 {[%clk 0:00:28.2]} 32.
R6c4+ {[%clk 0:01:11.8]} 32... Kd3 {[%clk 0:00:28.2]} 33. R1c3+ {[%clk
0:01:11.2]} 33... Kd2 {[%clk 0:00:24.2]} 34. Rxe4 {[%clk 0:01:11.1]} 34... g4
{[%clk 0:00:24.9]} 35. Rd4+ {[%clk 0:01:10.8]} 35... Ke1 {[%clk 0:00:23.6]} 36.
Re3# {[%clk 0:01:11.7]} 1-0

[Event "*** SCC Grand Prix: Titled Tuesday Blitz"]
[Site "Chess.com"]
[Date "2020.10.06"]
[Round "1"]
[White "Brave_spirit12"]
[Black "ailime26"]
[Result "1-0"]
[WhiteElo "2476"]
[BlackElo "1843"]
[TimeControl "180+1"]
[EndTime "10:05:57 PDT"]
[Termination "Brave_spirit12 won by checkmate"]

1. e4 {[%clk 0:02:54.4]} 1... c5 {[%clk 0:02:57.2]} 2. c3 {[%clk 0:02:54.1]}
2... Nc6 {[%clk 0:02:51.6]} 3. d4 {[%clk 0:02:51.4]} 3... cxd4 {[%clk
0:02:49.9]} 4. cxd4 {[%clk 0:02:52.3]} 4... e6 {[%clk 0:02:49.5]} 5. d5 {[%clk
0:02:50.7]} 5... Bb4+ {[%clk 0:02:44.9]} 6. Nc3 {[%clk 0:02:48.5]} 6... exd5
{[%clk 0:02:30.8]} 7. exd5 {[%clk 0:02:43.7]} 7... Ne5 {[%clk 0:02:24.1]} 8. Be2
{[%clk 0:02:22.3]} 8... Nf6 {[%clk 0:02:19.3]} 9. Nf3 {[%clk 0:02:15.3]} 9...
Nxf3+ {[%clk 0:02:17.8]} 10. Bxf3 {[%clk 0:02:16.2]} 10... Qe7+ {[%clk
0:02:13.9]} 11. Be3 {[%clk 0:02:14.1]} 11... O-O {[%clk 0:02:09.2]} 12. O-O
{[%clk 0:02:13.9]} 12... d6 {[%clk 0:02:08.5]} 13. Re1 {[%clk 0:02:09.4]} 13...
Qc7 {[%clk 0:02:04.8]} 14. Rc1 {[%clk 0:02:08.2]} 14... Bf5 {[%clk 0:01:53.4]}
15. Bd4 {[%clk 0:02:02.6]} 15... Qd8 {[%clk 0:01:46.3]} 16. Qd2 {[%clk
0:01:58.6]} 16... a6 {[%clk 0:01:28.8]} 17. Qf4 {[%clk 0:01:54.3]} 17... Bg6
{[%clk 0:01:15.3]} 18. Bxf6 {[%clk 0:01:51.9]} 18... Qxf6 {[%clk 0:01:12.9]} 19.
Qxb4 {[%clk 0:01:51.1]} 19... b5 {[%clk 0:00:56.3]} 20. Ne4 {[%clk 0:01:48.5]}
20... Bxe4 {[%clk 0:00:47.1]} 21. Bxe4 {[%clk 0:01:49.4]} 21... a5 {[%clk
0:00:43.8]} 22. Qxb5 {[%clk 0:01:48.6]} 22... Rfb8 {[%clk 0:00:43]} 23. Qc6
{[%clk 0:01:48.2]} 23... g6 {[%clk 0:00:41.5]} 24. Bf3 {[%clk 0:01:45.2]} 24...
a4 {[%clk 0:00:35]} 25. h3 {[%clk 0:01:41.4]} 25... h5 {[%clk 0:00:32.2]} 26. b3
{[%clk 0:01:36.1]} 26... axb3 {[%clk 0:00:29.7]} 27. axb3 {[%clk 0:01:37]} 27...
Ra2 {[%clk 0:00:27.1]} 28. Re8+ {[%clk 0:01:34.4]} 28... Rxe8 {[%clk 0:00:24]}
29. Qxe8+ {[%clk 0:01:35.3]} 29... Kg7 {[%clk 0:00:23.4]} 30. Rc8 {[%clk
0:01:34.6]} 30... Ra1+ {[%clk 0:00:09.9]} 31. Kh2 {[%clk 0:01:34.4]} 31... Qf4+
{[%clk 0:00:08.2]} 32. g3 {[%clk 0:01:34.2]} 32... Qxf3 {[%clk 0:00:02.2]} 33.
Qh8# {[%clk 0:01:34.3]} 1-0

[Event "*** SCC Grand Prix: Titled Tuesday Blitz"]
[Site "Chess.com"]
[Date "2020.10.06"]
[Round "1"]
[White "Jabberwockiez"]
[Black "Keithonsky"]
[Result "0-1"]
[WhiteElo "2224"]
[BlackElo "2556"]
[TimeControl "180+1"]
[EndTime "10:06:00 PDT"]
[Termination "Keithonsky won by resignation"]

1. e4 {[%clk 0:02:58.7]} 1... c5 {[%clk 0:02:58.4]} 2. Nc3 {[%clk 0:02:58.5]}
2... a6 {[%clk 0:02:57.8]} 3. Nf3 {[%clk 0:02:57.1]} 3... e6 {[%clk 0:02:57.7]}
4. d4 {[%clk 0:02:57.6]} 4... cxd4 {[%clk 0:02:58.6]} 5. Nxd4 {[%clk 0:02:58.2]}
5... Qc7 {[%clk 0:02:59.2]} 6. Bd3 {[%clk 0:02:53.5]} 6... Nf6 {[%clk
0:02:58.7]} 7. O-O {[%clk 0:02:52.8]} 7... d6 {[%clk 0:02:59.2]} 8. f4 {[%clk
0:02:51.9]} 8... Be7 {[%clk 0:02:58.1]} 9. Nf3 {[%clk 0:02:41.8]} 9... Nbd7
{[%clk 0:02:57]} 10. e5 {[%clk 0:02:30.8]} 10... dxe5 {[%clk 0:02:55.1]} 11.
fxe5 {[%clk 0:02:31.4]} 11... Nxe5 {[%clk 0:02:55.4]} 12. Nxe5 {[%clk
0:02:14.6]} 12... Qxe5 {[%clk 0:02:56.3]} 13. Bf4 {[%clk 0:02:11.5]} 13... Qa5
{[%clk 0:02:46.4]} 14. Ne4 {[%clk 0:01:59.5]} 14... O-O {[%clk 0:02:39.1]} 15.
Nxf6+ {[%clk 0:01:56.3]} 15... Bxf6 {[%clk 0:02:37.6]} 16. Qg4 {[%clk
0:01:51.5]} 16... e5 {[%clk 0:02:22.1]} 17. Bxh7+ {[%clk 0:01:00.4]} 17... Kxh7
{[%clk 0:02:20.4]} 18. Qh5+ {[%clk 0:01:00.2]} 18... Kg8 {[%clk 0:02:20]} 19.
Bh6 {[%clk 0:00:54.5]} 19... Qb6+ {[%clk 0:02:17.2]} 20. Kh1 {[%clk 0:00:53.3]}
20... gxh6 {[%clk 0:02:13.8]} 21. Qxh6 {[%clk 0:00:51.4]} 21... Bd8 {[%clk
0:02:14.2]} 22. Qh5 {[%clk 0:00:45.1]} 22... Qg6 {[%clk 0:02:12.7]} 23. Qxe5
{[%clk 0:00:45.1]} 23... Qg5 {[%clk 0:02:00.7]} 24. Qe4 {[%clk 0:00:36]} 24...
Bc7 {[%clk 0:01:48.7]} 25. Rf3 {[%clk 0:00:29.5]} 25... Be6 {[%clk 0:01:47.8]}
26. Raf1 {[%clk 0:00:24.5]} 26... Bd5 {[%clk 0:01:46]} 27. Rf5 {[%clk
0:00:21.5]} 27... Bxe4 {[%clk 0:01:37.6]} 28. Rxg5+ {[%clk 0:00:21.6]} 28... Kh8
{[%clk 0:01:37.3]} 29. Rf6 {[%clk 0:00:15.6]} 29... Bh7 {[%clk 0:01:35.2]} 30.
Rh5 {[%clk 0:00:14.1]} 30... Rad8 {[%clk 0:01:32.5]} 31. g3 {[%clk 0:00:12.6]}
31... Kg7 {[%clk 0:01:33]} 32. Rfh6 {[%clk 0:00:11.9]} 32... Be4+ {[%clk
0:01:33.2]} 33. Kg1 {[%clk 0:00:11.6]} 33... Bb6+ {[%clk 0:01:34.1]} 34. Kf1
{[%clk 0:00:11.7]} 34... Bg6 {[%clk 0:01:34]} 35. Rh4 {[%clk 0:00:11.2]} 35...
Rfe8 {[%clk 0:01:33.6]} 36. Rxg6+ {[%clk 0:00:09.3]} 36... fxg6 {[%clk
0:01:33.2]} 0-1

[Event "*** SCC Grand Prix: Titled Tuesday Blitz"]
[Site "Chess.com"]
[Date "2020.10.06"]
[Round "1"]
[White "MashaFromRussia"]
[Black "youngKID"]
[Result "0-1"]
[WhiteElo "2408"]
[BlackElo "2801"]
[TimeControl "180+1"]
[EndTime "10:06:02 PDT"]
[Termination "youngKID won by resignation"]

1. d4 {[%clk 0:03:00.9]} 1... Nf6 {[%clk 0:02:59.6]} 2. c4 {[%clk 0:03:00.9]}
2... Nc6 {[%clk 0:02:59.4]} 3. Nf3 {[%clk 0:03:00.9]} 3... e6 {[%clk 0:02:58.6]}
4. g3 {[%clk 0:03:00.1]} 4... Bb4+ {[%clk 0:02:58]} 5. Bd2 {[%clk 0:02:59.6]}
5... Qe7 {[%clk 0:02:57.1]} 6. Bg2 {[%clk 0:02:59.2]} 6... Bxd2+ {[%clk
0:02:57.3]} 7. Qxd2 {[%clk 0:02:54.8]} 7... Ne4 {[%clk 0:02:57.1]} 8. Qc2 {[%clk
0:02:18.8]} 8... Qb4+ {[%clk 0:02:56.3]} 9. Kf1 {[%clk 0:02:18.3]} 9... d5
{[%clk 0:02:47]} 10. cxd5 {[%clk 0:02:12.6]} 10... exd5 {[%clk 0:02:47.9]} 11.
e3 {[%clk 0:01:50.8]} 11... Bf5 {[%clk 0:02:42.1]} 12. Qb3 {[%clk 0:01:38.1]}
12... O-O-O {[%clk 0:02:12.9]} 13. Qxb4 {[%clk 0:01:33.1]} 13... Nxb4 {[%clk
0:02:12.8]} 14. Nbd2 {[%clk 0:01:33.7]} 14... Nxd2+ {[%clk 0:02:09.5]} 15. Nxd2
{[%clk 0:01:34.6]} 15... Bd3+ {[%clk 0:02:06.1]} 16. Kg1 {[%clk 0:01:32.3]}
16... a5 {[%clk 0:02:00]} 17. Bf1 {[%clk 0:01:29.9]} 17... Rhe8 {[%clk
0:01:57.7]} 18. Bxd3 {[%clk 0:01:26.2]} 18... Nxd3 {[%clk 0:01:57.8]} 19. b3
{[%clk 0:01:22.4]} 19... Rd6 {[%clk 0:01:46.8]} 20. Kg2 {[%clk 0:01:19.1]} 20...
Rc6 {[%clk 0:01:45.1]} 21. Nf3 {[%clk 0:01:07.3]} 21... Rc2 {[%clk 0:01:43.3]}
22. Rhf1 {[%clk 0:01:07.8]} 22... Rxe3 {[%clk 0:01:41.4]} 23. Ne1 {[%clk
0:01:02.1]} 23... Nxe1+ {[%clk 0:01:32.6]} 24. Rfxe1 {[%clk 0:01:03]} 24... Re6
{[%clk 0:01:24.3]} 25. Kf3 {[%clk 0:00:56.1]} 25... Rf6+ {[%clk 0:01:17.6]} 26.
Kg4 {[%clk 0:00:56]} 26... Rfxf2 {[%clk 0:01:11.9]} 27. Re8+ {[%clk 0:00:54.7]}
27... Kd7 {[%clk 0:01:12]} 28. Rae1 {[%clk 0:00:55.6]} 28... Rxa2 {[%clk
0:00:50.8]} 29. h4 {[%clk 0:00:54.6]} 29... h6 {[%clk 0:00:50.1]} 30. Rg8 {[%clk
0:00:45.6]} 30... g6 {[%clk 0:00:49.5]} 31. Ree8 {[%clk 0:00:44.4]} 31... f5+
{[%clk 0:00:49]} 0-1

[Event "*** SCC Grand Prix: Titled Tuesday Blitz"]
[Site "Chess.com"]
[Date "2020.10.06"]
[Round "1"]
[White "Grieve72"]
[Black "Sibelephant"]
[Result "0-1"]
[WhiteElo "2473"]
[BlackElo "3102"]
[TimeControl "180+1"]
[EndTime "10:06:03 PDT"]
[Termination "Sibelephant won by resignation"]

1. e4 {[%clk 0:02:57.9]} 1... c5 {[%clk 0:02:57.4]} 2. Nf3 {[%clk 0:02:57.6]}
2... a6 {[%clk 0:02:58]} 3. c4 {[%clk 0:02:55.3]} 3... Nc6 {[%clk 0:02:57.4]} 4.
d4 {[%clk 0:02:52]} 4... cxd4 {[%clk 0:02:57.9]} 5. Nxd4 {[%clk 0:02:52.9]} 5...
e5 {[%clk 0:02:58.6]} 6. Nf5 {[%clk 0:02:49.4]} 6... d6 {[%clk 0:02:56.8]} 7.
Nc3 {[%clk 0:02:42.1]} 7... g6 {[%clk 0:02:56.7]} 8. Ne3 {[%clk 0:02:40.8]} 8...
Bh6 {[%clk 0:02:56.7]} 9. Be2 {[%clk 0:02:29.9]} 9... Nge7 {[%clk 0:02:48.9]}
10. O-O {[%clk 0:02:27.9]} 10... O-O {[%clk 0:02:48.2]} 11. Qd3 {[%clk
0:01:53.1]} 11... Nd4 {[%clk 0:02:44.1]} 12. Ncd5 {[%clk 0:01:31]} 12... Nxd5
{[%clk 0:02:37.3]} 13. exd5 {[%clk 0:01:10.5]} 13... Bg7 {[%clk 0:02:36.9]} 14.
Qd2 {[%clk 0:00:54.6]} 14... b5 {[%clk 0:02:28.9]} 15. b3 {[%clk 0:00:46.2]}
15... f5 {[%clk 0:02:23.5]} 16. Nc2 {[%clk 0:00:45.2]} 16... Nxe2+ {[%clk
0:02:11.5]} 17. Qxe2 {[%clk 0:00:44.9]} 17... bxc4 {[%clk 0:02:11.8]} 18. bxc4
{[%clk 0:00:41.9]} 18... f4 {[%clk 0:02:11.9]} 19. Nb4 {[%clk 0:00:34.6]} 19...
f3 {[%clk 0:02:10.9]} 20. gxf3 {[%clk 0:00:28.9]} 20... Bh3 {[%clk 0:02:02.5]}
21. Re1 {[%clk 0:00:29.1]} 21... e4 {[%clk 0:02:02.2]} 22. Rb1 {[%clk
0:00:21.2]} 22... Bc3 {[%clk 0:01:28.2]} 23. Bd2 {[%clk 0:00:15.5]} 23... Qh4
{[%clk 0:01:00.7]} 24. fxe4 {[%clk 0:00:06.5]} 24... Bxd2 {[%clk 0:01:00]} 25.
Qxd2 {[%clk 0:00:06.8]} 25... Qg4+ {[%clk 0:01:00.4]} 0-1

[Event "*** SCC Grand Prix: Titled Tuesday Blitz"]
[Site "Chess.com"]
[Date "2020.10.06"]
[Round "1"]
[White "Nara_Kh"]
[Black "MiroVlasenko"]
[Result "0-1"]
[WhiteElo "2403"]
[BlackElo "2792"]
[TimeControl "180+1"]
[EndTime "10:06:03 PDT"]
[Termination "MiroVlasenko won by resignation"]

1. e4 {[%clk 0:03:00.4]} 1... Nc6 {[%clk 0:02:59.6]} 2. Nf3 {[%clk 0:02:59.2]}
2... d6 {[%clk 0:02:58.7]} 3. h3 {[%clk 0:02:58.1]} 3... Nf6 {[%clk 0:02:58.3]}
4. Nc3 {[%clk 0:02:57.4]} 4... g6 {[%clk 0:02:58.3]} 5. d4 {[%clk 0:02:56.6]}
5... Bg7 {[%clk 0:02:58.5]} 6. Be3 {[%clk 0:02:54.3]} 6... O-O {[%clk
0:02:58.7]} 7. Qd2 {[%clk 0:02:53.1]} 7... a6 {[%clk 0:02:58.9]} 8. O-O-O {[%clk
0:02:46.5]} 8... b5 {[%clk 0:02:58.9]} 9. Bd3 {[%clk 0:02:46.6]} 9... Nb4 {[%clk
0:02:57.3]} 10. Kb1 {[%clk 0:02:40.2]} 10... Bb7 {[%clk 0:02:54.5]} 11. Bh6
{[%clk 0:02:34.1]} 11... Nxd3 {[%clk 0:02:52.1]} 12. cxd3 {[%clk 0:02:34.3]}
12... c5 {[%clk 0:02:51.8]} 13. Bxg7 {[%clk 0:02:23]} 13... Kxg7 {[%clk
0:02:52.7]} 14. h4 {[%clk 0:02:22.6]} 14... h5 {[%clk 0:02:50.9]} 15. dxc5
{[%clk 0:02:15.8]} 15... dxc5 {[%clk 0:02:49.3]} 16. e5 {[%clk 0:02:16.1]} 16...
Nd5 {[%clk 0:02:45.7]} 17. Ne4 {[%clk 0:02:15.1]} 17... Rc8 {[%clk 0:02:37.7]}
18. Rdg1 {[%clk 0:01:48.1]} 18... Nb4 {[%clk 0:02:35.9]} 19. Rd1 {[%clk
0:01:23.9]} 19... Qxd3+ {[%clk 0:02:34.2]} 20. Qxd3 {[%clk 0:01:21.6]} 20...
Nxd3 {[%clk 0:02:34.1]} 21. Nfg5 {[%clk 0:01:17.3]} 21... Nxe5 {[%clk 0:02:32]}
22. f4 {[%clk 0:01:17.1]} 22... Ng4 {[%clk 0:02:29.9]} 23. Rd7 {[%clk
0:01:15.8]} 23... Bxe4+ {[%clk 0:02:14.9]} 24. Nxe4 {[%clk 0:01:16.7]} 24... Nf6
{[%clk 0:02:14.8]} 25. Rxe7 {[%clk 0:01:15]} 25... Nxe4 {[%clk 0:02:14.6]} 26.
Rxe4 {[%clk 0:01:15.3]} 26... Rfe8 {[%clk 0:02:14.7]} 27. Rhe1 {[%clk
0:01:14.2]} 27... Kf8 {[%clk 0:02:13.1]} 28. Re5 {[%clk 0:01:10.7]} 28... f6
{[%clk 0:02:07.7]} 29. Re6 {[%clk 0:01:10.4]} 29... Kf7 {[%clk 0:02:06.6]} 30.
Rxe8 {[%clk 0:00:43.2]} 30... Rxe8 {[%clk 0:02:07.5]} 31. Rd1 {[%clk 0:00:43.7]}
31... Re4 {[%clk 0:02:03.6]} 32. g3 {[%clk 0:00:37.1]} 32... Re3 {[%clk
0:02:03.4]} 33. Rd6 {[%clk 0:00:35.8]} 33... Rxg3 {[%clk 0:02:01.8]} 34. Rxa6
{[%clk 0:00:35.3]} 34... Rg4 {[%clk 0:02:01.9]} 35. Rc6 {[%clk 0:00:33.5]} 35...
Rxh4 {[%clk 0:02:00.2]} 36. Rxc5 {[%clk 0:00:33.6]} 36... Rxf4 {[%clk
0:01:59.9]} 37. Rxb5 {[%clk 0:00:33.9]} 37... h4 {[%clk 0:02:00]} 38. Rb7+
{[%clk 0:00:28]} 38... Kg8 {[%clk 0:01:57.6]} 39. Rb3 {[%clk 0:00:25.7]} 39...
g5 {[%clk 0:01:57.5]} 40. Re3 {[%clk 0:00:22.4]} 40... g4 {[%clk 0:01:56.9]} 41.
a3 {[%clk 0:00:22.6]} 41... h3 {[%clk 0:01:56.6]} 42. b4 {[%clk 0:00:19.9]}
42... h2 {[%clk 0:01:56.1]} 43. Re1 {[%clk 0:00:20]} 43... g3 {[%clk 0:01:55.2]}
44. b5 {[%clk 0:00:20.4]} 44... g2 {[%clk 0:01:54.9]} 45. b6 {[%clk 0:00:20.8]}
45... g1=Q {[%clk 0:01:53.8]} 0-1

[Event "*** SCC Grand Prix: Titled Tuesday Blitz"]
[Site "Chess.com"]
[Date "2020.10.06"]
[Round "1"]
[White "Jumbo"]
[Black "Aleksandar-Topalov"]
[Result "1-0"]
[WhiteElo "2716"]
[BlackElo "2373"]
[TimeControl "180+1"]
[EndTime "10:06:03 PDT"]
[Termination "Jumbo won by resignation"]

1. d4 {[%clk 0:02:57.7]} 1... Nf6 {[%clk 0:02:59.5]} 2. c4 {[%clk 0:02:55.8]}
2... c5 {[%clk 0:02:57.7]} 3. d5 {[%clk 0:02:54]} 3... d6 {[%clk 0:02:57.8]} 4.
Nc3 {[%clk 0:02:52.3]} 4... g6 {[%clk 0:02:57.8]} 5. e4 {[%clk 0:02:51.7]} 5...
Bg7 {[%clk 0:02:58]} 6. Bd3 {[%clk 0:02:50.8]} 6... O-O {[%clk 0:02:58.1]} 7.
Nge2 {[%clk 0:02:49]} 7... e6 {[%clk 0:02:57.2]} 8. O-O {[%clk 0:02:49.1]} 8...
exd5 {[%clk 0:02:57.4]} 9. cxd5 {[%clk 0:02:50]} 9... b6 {[%clk 0:02:56.7]} 10.
h3 {[%clk 0:02:39.5]} 10... Ba6 {[%clk 0:02:56.6]} 11. Bxa6 {[%clk 0:02:37.7]}
11... Nxa6 {[%clk 0:02:56.5]} 12. f4 {[%clk 0:02:37]} 12... Re8 {[%clk
0:02:54.1]} 13. Ng3 {[%clk 0:02:36.7]} 13... b5 {[%clk 0:02:49.8]} 14. Qf3
{[%clk 0:02:09.1]} 14... b4 {[%clk 0:02:49]} 15. Nd1 {[%clk 0:02:09.6]} 15...
Nc7 {[%clk 0:02:48.6]} 16. Ne3 {[%clk 0:02:03.8]} 16... Nb5 {[%clk 0:02:46.9]}
17. Nc4 {[%clk 0:02:03.5]} 17... Nd4 {[%clk 0:02:47]} 18. Qd3 {[%clk 0:02:03.3]}
18... Qe7 {[%clk 0:02:41.2]} 19. e5 {[%clk 0:01:51.7]} 19... dxe5 {[%clk
0:02:39.6]} 20. d6 {[%clk 0:01:51.1]} 20... Qe6 {[%clk 0:02:31.3]} 21. fxe5
{[%clk 0:01:45.3]} 21... Nd7 {[%clk 0:02:31.3]} 22. Bf4 {[%clk 0:01:45.4]} 22...
Nxe5 {[%clk 0:02:27.5]} 23. Bxe5 {[%clk 0:01:37.9]} 23... Bxe5 {[%clk
0:02:26.8]} 24. Rae1 {[%clk 0:01:35.8]} 24... Qd5 {[%clk 0:02:18.8]} 25. Ne4
{[%clk 0:00:52.5]} 25... Re6 {[%clk 0:01:31.3]} 26. Nxe5 {[%clk 0:00:31.4]}
26... Qxe5 {[%clk 0:01:21.8]} 27. Nf6+ {[%clk 0:00:31.2]} 27... Qxf6 {[%clk
0:01:22.1]} 28. Rxf6 {[%clk 0:00:31.3]} 28... Rxf6 {[%clk 0:01:22.4]} 29. d7
{[%clk 0:00:28.6]} 29... Kf8 {[%clk 0:01:20.6]} 30. Qe4 {[%clk 0:00:26.7]} 1-0

[Event "*** SCC Grand Prix: Titled Tuesday Blitz"]
[Site "Chess.com"]
[Date "2020.10.06"]
[Round "1"]
[White "RusPakhom"]
[Black "Kildepiotr"]
[Result "0-1"]
[WhiteElo "2287"]
[BlackElo "2599"]
[TimeControl "180+1"]
[EndTime "10:06:04 PDT"]
[Termination "Kildepiotr won by resignation"]

1. e4 {[%clk 0:03:00.6]} 1... g6 {[%clk 0:02:59.4]} 2. d4 {[%clk 0:03:00.4]}
2... Bg7 {[%clk 0:02:59.5]} 3. Nf3 {[%clk 0:03:00.8]} 3... c6 {[%clk 0:02:59.7]}
4. Nc3 {[%clk 0:03:00.5]} 4... d6 {[%clk 0:02:59.8]} 5. a4 {[%clk 0:02:58.6]}
5... Bg4 {[%clk 0:02:59.3]} 6. Be3 {[%clk 0:02:57.4]} 6... Nd7 {[%clk
0:02:59.3]} 7. h3 {[%clk 0:02:56]} 7... Bxf3 {[%clk 0:02:59.4]} 8. Qxf3 {[%clk
0:02:56.9]} 8... e5 {[%clk 0:02:58.8]} 9. dxe5 {[%clk 0:02:52.5]} 9... dxe5
{[%clk 0:02:58.2]} 10. Bc4 {[%clk 0:02:51.3]} 10... Ngf6 {[%clk 0:02:57.5]} 11.
O-O {[%clk 0:02:50.1]} 11... O-O {[%clk 0:02:57.1]} 12. a5 {[%clk 0:02:48.6]}
12... Qc7 {[%clk 0:02:53.4]} 13. Rfd1 {[%clk 0:02:47.3]} 13... b5 {[%clk
0:02:49.9]} 14. axb6 {[%clk 0:02:44.3]} 14... axb6 {[%clk 0:02:49.7]} 15. g4
{[%clk 0:02:32.6]} 15... b5 {[%clk 0:02:49.2]} 16. Bb3 {[%clk 0:02:32.3]} 16...
Rxa1 {[%clk 0:02:34.6]} 17. Rxa1 {[%clk 0:02:29.8]} 17... Nb6 {[%clk 0:02:34.5]}
18. Bc5 {[%clk 0:02:06.6]} 18... Ra8 {[%clk 0:02:27.7]} 19. Rxa8+ {[%clk
0:01:46.4]} 19... Nxa8 {[%clk 0:02:27.1]} 20. g5 {[%clk 0:01:36.4]} 20... Nh5
{[%clk 0:02:24.4]} 21. Ne2 {[%clk 0:01:10.2]} 21... Nf4 {[%clk 0:02:21.5]} 22.
Nxf4 {[%clk 0:01:07.2]} 22... exf4 {[%clk 0:02:22.4]} 23. c3 {[%clk 0:01:05.8]}
23... Qe5 {[%clk 0:02:20.9]} 24. Ba7 {[%clk 0:00:52.1]} 24... Qxg5+ {[%clk
0:02:20.2]} 25. Kf1 {[%clk 0:00:46.4]} 25... Be5 {[%clk 0:02:17.6]} 26. Qd3
{[%clk 0:00:40.6]} 26... Qe7 {[%clk 0:02:16.7]} 27. Bd4 {[%clk 0:00:31.6]} 27...
Bxd4 {[%clk 0:01:56.9]} 28. Qxd4 {[%clk 0:00:29.1]} 28... Nc7 {[%clk 0:01:53.5]}
29. Qb6 {[%clk 0:00:21.1]} 29... Qd7 {[%clk 0:01:50.9]} 30. Qc5 {[%clk
0:00:16.5]} 30... Qxh3+ {[%clk 0:01:47.5]} 31. Ke1 {[%clk 0:00:17]} 31... Qh1+
{[%clk 0:01:43.8]} 32. Kd2 {[%clk 0:00:16.1]} 32... Qxe4 {[%clk 0:01:43.8]} 33.
Qd6 {[%clk 0:00:14.7]} 33... Ne6 {[%clk 0:01:38.6]} 34. Qe7 {[%clk 0:00:09.6]}
34... Kg7 {[%clk 0:01:33.7]} 35. Kc1 {[%clk 0:00:06.5]} 35... Qe1+ {[%clk
0:01:32]} 36. Kc2 {[%clk 0:00:06.2]} 36... Nd4+ {[%clk 0:01:31.6]} 0-1